bitfinex-derivatives/quotes_ETHF0:USTF0_20251005
["timestamp","ask_amount","ask_price","bid_price","bid_amount"]
[1759682537845,0.69248412,4541.6,4541.5,1.2757562]
[1759682538451,0.3224,4539.8,4539.5,3.2078]
[1759682538663,0.7516,4539.6,4539.5,3.7502]
[1759682538844,1.22099367,4539.6,4539.5,3.2078]
[1759682539046,0.39643,4539.2,4539.0,3.5415]
[1759682539346,0.4292,4538.8,4538.7,0.4287]
[1759682539538,1.22099367,4538.8,4538.7,0.9771]
[1759682539740,1.22099367,4538.8,4538.7,0.97962968]
[1759682541149,0.46939367,4538.8,4538.7,1.37609968]
[1759682541452,0.46939367,4538.8,4538.7,6.37609968]
[1759682543157,0.39641,4539.4,4539.3,0.4234]
[1759682543351,0.86342449,4539.4,4539.3,4.1849]
[1759682543552,0.39641,4539.4,4539.3,4.1849]
[1759682544959,1.14801,4539.4,4539.3,3.9702]
[1759682546051,11.46968581,4539.4,4538.7,0.00252968]
[1759682546250,0.8826,4538.0,4537.9,3.2078]
[1759682546459,0.8826,4538.0,4537.9,3.8452]
[1759682546654,0.7516,4538.0,4537.9,4.0599]
[1759682547150,0.75439309,4538.0,4537.9,4.06165697]
[1759682549356,0.75439309,4538.0,4537.9,0.85385697]
[1759682550256,0.2255,4537.0,4536.2,0.3337]
[1759682550452,0.7516,4536.3,4536.2,0.3337]
[1759682550652,1.14828,4536.2,4536.1,0.4287]
[1759682551258,1.14828,4536.2,4536.1,0.43066251]
[1759682551862,1.14828,4536.2,4536.1,0.21066251]
[1759682552056,1.14828,4536.2,4536.1,0.00196251]
[1759682553965,1.14828,4536.2,4536.1,0.21066251]
[1759682555761,0.73447,4536.5,4536.2,0.3209]
[1759682555955,0.39667,4536.4,4536.3,0.9732]
[1759682556151,1.16587,4536.4,4536.3,0.9732]
[1759682556463,0.95232,4536.9,4536.8,0.7532]
[1759682556665,1.16582,4536.9,4536.8,0.7532]
[1759682558659,0.7692,4534.4,4534.3,3.3529]
[1759682558854,0.7692,4534.4,4534.3,0.2902]
[1759682559359,0.3378,4534.4,4534.3,0.5112]
[1759682559553,0.3378,4534.4,4534.3,0.51293744]
[1759682559758,0.34049583,4534.4,4534.3,0.51293744]
[1759682560160,0.55839583,4534.4,4534.3,0.51293744]
[1759682560559,0.55839583,4534.4,4534.3,0.29193744]
[1759682560758,0.55839583,4534.4,4534.3,0.51293744]
[1759682561861,0.77189583,4534.4,4534.3,0.00173744]
[1759682566561,0.77189583,4534.4,4534.3,0.51293744]
[1759682567572,0.34049583,4534.4,4534.3,0.60383744]
[1759682570271,0.00269583,4534.4,4534.3,0.60383744]
[1759682570872,0.32739583,4534.4,4534.3,0.60383744]
[1759682573870,0.00269583,4534.4,4534.3,6.00068744]
[1759682576970,1.14293583,4534.4,4534.3,0.00173744]
[1759682577172,1.21427643,4534.4,4534.3,0.00173744]
[1759682577475,6.21427643,4534.4,4534.3,0.22273744]
[1759682577669,6.21427643,4534.4,4533.7,3.2078]
[1759682577670,0.7434,4533.8,4533.7,3.2078]
[1759682577868,0.7434,4533.8,4533.7,3.4288]
[1759682578275,1.21188982,4533.8,4533.7,3.4288]
[1759682578673,1.21188982,4533.8,4533.7,3.43074117]
[1759682578974,1.21188982,4533.8,4533.7,3.57894117]
[1759682580575,1.21188982,4533.8,4533.7,3.72714117]
[1759682582477,1.21188982,4533.8,4533.7,3.50614117]
[1759682582672,1.21188982,4533.8,4533.7,3.72714117]
[1759682582874,1.21188982,4533.8,4533.7,3.50614117]
[1759682583078,1.21188982,4533.8,4533.7,3.72714117]
[1759682584582,1.60877982,4533.8,4533.7,3.20974117]
[1759682584886,1.60877982,4533.8,4533.7,3.43074117]
[1759682585773,1.60877982,4533.8,4533.7,3.20974117]
[1759682585974,1.60877982,4533.8,4533.7,3.43074117]
[1759682586384,1.60877982,4533.8,4533.7,3.20974117]
[1759682586580,1.14034,4533.3,4533.2,3.2078]
[1759682586781,1.60882982,4533.3,4533.2,3.4288]
[1759682587484,1.21188982,4533.3,4533.2,3.43087762]
[1759682589883,1.21188982,4533.3,4533.2,3.20987762]
[1759682590183,1.21188982,4533.3,4533.2,3.43087762]
[1759682590782,1.21188982,4533.3,4533.2,3.20987762]
[1759682590982,6.21188982,4533.3,4533.2,3.12971721]
[1759682591181,6.21188982,4533.3,4533.2,0.221]
[1759682591182,9.81662982,4533.3,4533.2,0.221]
[1759682591483,6.60882982,4533.3,4533.2,0.221]
[1759682592084,6.60882982,4533.3,4533.2,0.22266518]
[1759682592282,9.81662982,4533.3,4533.2,0.22266518]
[1759682592787,9.81662982,4533.3,4533.2,0.00166518]
[1759682593488,0.7434,4532.3,4532.2,3.2078]
[1759682593688,1.21188982,4532.3,4532.2,3.4288]
[1759682594080,1.21188982,4532.3,4532.2,3.577]
[1759682594388,1.21188982,4532.3,4532.2,3.57887917]
[1759682595485,0.99958982,4532.3,4532.2,3.72707917]
[1759682595687,0.99958982,4532.3,4532.2,3.81967917]
[1759682595992,0.79318982,4532.3,4532.2,3.81967917]
[1759682598093,1.21808982,4532.3,4532.2,3.72707917]
[1759682599192,0.7496,4532.3,4532.2,3.72707917]
[1759682600585,0.7496,4532.3,4532.2,3.50607917]
[1759682600785,0.7496,4532.3,4532.2,3.72707917]
[1759682600988,0.7496,4532.3,4532.2,3.43067917]
[1759682601195,0.39703,4532.2,4531.7,3.2078]
[1759682601390,0.7565,4531.8,4531.7,3.2078]
[1759682601590,1.22571241,4531.8,4531.7,3.4288]
[1759682602392,1.22571241,4531.8,4531.7,3.57885531]
[1759682604689,1.22571241,4531.8,4531.7,3.72625531]
[1759682605192,0.46921241,4531.8,4531.7,8.81835531]
[1759682605393,0.538,4532.8,4532.7,0.2948]
[1759682605596,1.22551681,4532.8,4532.7,0.5158]
[1759682607493,1.22551681,4532.8,4532.7,0.3684]
[1759682609092,1.22551681,4532.8,4532.7,0.221]
[1759682609299,1.22551681,4532.8,4532.7,0.3684]
[1759682609890,1.22551681,4532.8,4532.7,0.5158]
[1759682610090,0.7565,4531.8,4531.7,3.35785531]
[1759682610297,0.7565,4531.8,4531.7,3.43145531]
[1759682610298,1.22551681,4531.8,4531.7,3.43145531]
[1759682611095,1.22551681,4531.8,4531.7,3.57885531]
[1759682615801,1.22551681,4531.8,4531.7,3.35785531]
[1759682615802,1.62258681,4531.8,4531.7,3.35785531]
[1759682615997,1.62258681,4531.8,4531.7,3.43145531]
[1759682617695,1.22551681,4531.8,4531.7,3.43145531]
[1759682618102,1.22551681,4531.8,4531.7,3.72865531]
[1759682620699,1.22551681,4531.8,4531.7,3.50765531]
[1759682620900,1.22551681,4531.8,4531.7,3.72865531]
[1759682621501,1.62258681,4531.8,4531.7,3.72865531]
[1759682621705,1.22551681,4531.8,4531.7,3.72865531]
[1759682622305,1.62258681,4531.8,4531.7,3.72865531]
[1759682622805,1.22551681,4531.8,4531.7,3.72865531]
[1759682623405,1.00701681,4531.8,4531.7,3.72865531]
[1759682623710,1.19348681,4531.8,4531.7,3.82155531]
[1759682623900,0.79641681,4531.8,4531.7,3.82155531]
[1759682624508,1.19348681,4531.8,4531.7,3.82155531]
[1759682624704,0.79641681,4531.8,4531.7,3.82155531]
[1759682625407,1.19348681,4531.8,4531.7,3.82155531]
[1759682625617,0.79641681,4531.8,4531.7,3.82155531]
[1759682625813,0.52401,4532.5,4531.9,0.39705]
[1759682626019,1.05491,4532.5,4532.4,0.2972]
[1759682626214,1.52435873,4532.5,4532.4,0.5182]
[1759682627415,1.12734873,4532.5,4532.4,0.5182]
[1759682627617,1.53275873,4532.5,4532.4,0.5182]
[1759682627817,1.13574873,4532.5,4532.4,0.5182]
[1759682628318,1.13574873,4532.5,4532.4,0.91522]
[1759682628520,0.91714873,4532.5,4532.4,4.21542]
[1759682629221,1.00874873,4532.5,4532.4,3.3002]
[1759682629519,0.8708,4532.0,4531.9,0.1479]
[1759682629724,1.34024873,4532.0,4531.9,0.1479]
[1759682629921,1.34024873,4532.0,4531.9,0.3689]
[1759682633920,1.34024873,4532.0,4531.9,0.5168]
[1759682634619,1.34024873,4532.0,4531.9,0.91386]
[1759682634918,0.78264873,4532.0,4531.9,1.00626]
[1759682635119,1.73729873,4532.0,4531.9,0.3689]
[1759682635323,1.73729873,4532.0,4531.9,0.221]
[1759682635924,0.81987,4531.8,4531.7,0.00265531]
[1759682636124,1.60251873,4531.8,4531.7,0.22365531]
[1759682636321,1.60251873,4531.8,4531.7,0.00265531]
[1759682636527,1.60251873,4531.8,4531.7,0.22365531]
[1759682637219,1.60251873,4531.8,4531.7,0.00265531]
[1759682637420,1.60251873,4531.8,4531.7,0.22365531]
[1759682638021,1.60251873,4531.8,4531.7,0.00265531]
[1759682638224,1.60251873,4531.8,4531.7,0.22365531]
[1759682639127,1.60251873,4531.8,4531.7,0.00265531]
[1759682639328,1.60251873,4531.8,4531.7,0.22365531]
[1759682640530,1.60251873,4531.8,4531.7,0.00265531]
[1759682640822,3.18865172,4531.8,4531.7,0.00265531]
[1759682641226,1.26794,4531.0,4530.9,3.3557]
[1759682641418,1.73738873,4531.0,4530.9,3.5767]
[1759682641618,1.73738873,4531.0,4530.9,3.2078]
[1759682641819,1.73738873,4531.0,4530.9,3.4288]
[1759682642233,1.7390084,4531.0,4530.9,3.43066658]
[1759682643228,1.7390084,4531.0,4530.9,3.57856658]
[1759682643530,1.3418684,4531.0,4530.9,3.72646658]
[1759682643728,0.4710684,4531.0,4530.9,4.21601658]
[1759682644030,0.7842684,4531.0,4530.9,4.21601658]
[1759682644427,0.9190684,4531.0,4530.9,4.21601658]
[1759682645230,0.9190684,4531.0,4530.9,3.99501658]
[1759682645434,1.3418684,4531.0,4530.9,3.43066658]
[1759682645831,1.3418684,4531.0,4530.9,3.57856658]
[1759682646330,1.3418684,4531.0,4530.9,3.72646658]
[1759682648432,1.7390084,4531.0,4530.9,3.20966658]
[1759682648627,1.7390084,4531.0,4530.9,0.00186658]
[1759682648834,1.7390084,4531.0,4530.9,0.22286658]
[1759682649029,1.7390084,4531.0,4530.9,0.00186658]
[1759682663848,1.3418684,4531.0,4530.9,0.00186658]
[1759682664039,1.7390084,4531.0,4530.9,0.00186658]
[1759682668650,1.3418684,4531.0,4530.9,0.00186658]
[1759682668850,1.3418684,4531.0,4530.9,0.29926658]
[1759682669045,1.7390084,4531.0,4530.9,0.29926658]
[1759682669643,1.7390084,4531.0,4530.9,0.15056658]
[1759682670049,1.3418684,4531.0,4530.9,0.15056658]
[1759682670349,1.3418684,4531.0,4530.9,0.00186658]
[1759682671547,1.7390084,4531.0,4530.9,0.00186658]
[1759682673856,1.3418684,4531.0,4530.9,0.00186658]
[1759682674453,1.7390084,4531.0,4530.9,0.00186658]
[1759682674759,1.27008,4530.5,4530.4,3.2078]
[1759682675052,1.73952873,4530.5,4530.4,3.2078]
[1759682675751,1.73952873,4530.5,4530.4,3.20959273]
[1759682678659,1.34234873,4530.5,4530.4,3.20959273]
[1759682678958,1.73952873,4530.5,4530.4,3.20959273]
[1759682680661,1.34234873,4530.5,4530.4,3.60779273]
[1759682681061,1.34234873,4530.5,4530.4,3.51299273]
[1759682686265,0.93164873,4530.5,4530.4,3.60779273]
[1759682686966,1.13774873,4530.5,4530.4,3.60779273]
[1759682688468,1.13774873,4530.5,4530.4,3.51299273]
[1759682688767,1.53492873,4530.5,4530.4,3.51299273]
[1759682689568,1.74312873,4530.5,4530.4,3.51299273]
[1759682689767,1.13774873,4530.5,4530.4,3.60779273]
[1759682689966,1.13774873,4530.5,4530.4,3.51299273]
[1759682690164,1.53492873,4530.5,4530.4,3.51299273]
[1759682692471,0.46944873,4530.5,4530.4,9.00498273]
[1759682692663,0.46944873,4530.5,4530.4,8.51299273]
[1759682692964,0.3342,4530.7,4530.6,0.3982]
[1759682693156,0.80433407,4530.7,4530.6,0.6192]
[1759682693557,0.47013407,4530.7,4530.6,5.79537]
[1759682693769,0.47013407,4530.7,4530.6,6.01637]
[1759682695274,0.3342,4530.9,4530.8,0.79536]
[1759682695574,0.80425595,4530.9,4530.8,1.01636]
[1759682697974,0.80425595,4530.9,4530.8,4.23791134]
[1759682698361,0.80425595,4530.9,4530.4,0.00179273]
[1759682698362,1.26858,4530.5,4530.4,0.00179273]
[1759682698563,1.73863595,4530.5,4530.4,0.00179273]
[1759682699371,1.34145595,4530.5,4530.4,0.00179273]
[1759682699573,1.34145595,4530.5,4530.4,0.15349273]
[1759682699871,1.34145595,4530.5,4530.4,0.30519273]
[1759682701273,1.34145595,4530.5,4530.4,0.22279273]
[1759682703174,0.8714,4530.5,4530.4,0.22279273]
[1759682703369,1.3411106,4530.5,4530.4,0.00179273]
[1759682707174,0.4567,4530.0,4529.8,0.39724]
[1759682707363,0.5407,4530.4,4530.3,0.3092]
[1759682707667,1.01057208,4530.4,4530.3,0.5302]
[1759682708277,1.01057208,4530.4,4530.3,0.53199522]
[1759682710572,0.5407,4530.4,4530.3,0.53199522]
[1759682710873,1.00959518,4530.4,4530.3,0.53199522]
[1759682713369,1.21779518,4530.4,4530.3,0.53199522]
[1759682713881,1.21779518,4530.4,4530.3,0.22279522]
[1759682714872,0.46889518,4530.4,4530.3,6.02579522]
[1759682715179,0.3342,4530.9,4530.8,0.80295]
[1759682715378,0.3342,4530.9,4530.8,4.23175]
[1759682715673,0.3342,4530.9,4530.8,9.23175]
[1759682716381,0.51956,4532.0,4531.1,0.80293]
[1759682716382,0.3342,4531.2,4531.1,0.80293]
[1759682717267,0.33663285,4531.2,4531.1,0.80293]
[1759682718974,0.00243285,4531.2,4531.1,0.80293]
[1759682719868,0.00243285,4531.2,4531.1,1.02393]
[1759682720773,0.30953285,4531.2,4531.1,1.02393]
[1759682721480,0.00243285,4531.2,4531.1,1.02393]
[1759682721879,0.53303285,4531.2,4531.1,1.02393]
[1759682723777,1.00079994,4531.2,4531.1,1.02393]
[1759682724280,0.53303285,4531.2,4531.1,1.02393]
[1759682724968,0.00243285,4531.2,4531.1,1.02393]
[1759682725779,0.00243285,4531.2,4531.1,6.02393]
[1759682726376,0.3071,4531.5,4531.4,0.8005]
[1759682726672,0.77444687,4531.5,4531.4,4.2293]
[1759682727274,0.77666244,4531.5,4531.4,4.2293]
[1759682728780,0.91196244,4531.5,4531.4,4.2293]
[1759682733688,0.44461557,4531.5,4531.4,4.2293]
[1759682734287,0.00221557,4531.5,4531.4,4.2293]
[1759682734483,0.4451,4532.0,4531.9,0.79946]
[1759682734785,0.4451,4532.0,4531.9,4.22826]
[1759682735588,0.44777328,4532.0,4531.9,4.22826]
[1759682739087,0.00267328,4532.0,4531.9,4.22826]
[1759682739280,0.4451,4532.5,4532.4,0.79942]
[1759682739477,0.3226,4532.5,4532.4,4.22822]
[1759682740290,0.3254245,4532.5,4532.4,4.22822]
[1759682741390,0.9104245,4532.5,4532.4,3.91142]
[1759682741684,1.3074345,4532.5,4532.4,3.2078]
[1759682742090,1.3074345,4532.5,4532.4,3.4288]
[1759682742390,1.77496873,4532.5,4532.4,3.4288]
[1759682742983,1.77496873,4532.5,4532.4,3.2078]
[1759682743190,1.77496873,4532.5,4532.4,3.4288]
[1759682743591,1.77496873,4532.5,4532.4,0.221]
[1759682745394,1.37795873,4532.5,4532.4,0.221]
[1759682748289,1.77496873,4532.5,4532.4,0.221]
[1759682748491,1.77496873,4532.5,4532.0,0.39704]
[1759682748696,1.3074345,4532.5,4532.4,0.221]
[1759682748892,0.7454,4531.9,4531.8,3.75837]
[1759682749095,1.21359227,4531.9,4531.8,3.97937]
[1759682750496,1.21359227,4531.9,4531.8,3.75837]
[1759682750696,1.21359227,4531.9,4531.8,3.97937]
[1759682751896,1.21359227,4531.9,4531.8,3.75837]
[1759682752093,1.21359227,4531.9,4531.8,3.97937]
[1759682753295,1.21359227,4531.9,4531.8,3.75837]
[1759682753698,0.7454,4531.9,4531.8,3.97937]
[1759682755795,0.7454,4531.9,4531.8,4.13337]
[1759682760997,0.7454,4531.9,4531.8,0.92557]
[1759682761305,0.7454,4531.9,4531.8,4.13337]
[1759682761692,0.3242,4531.9,4531.8,4.22967]
[1759682763202,0.1380245,4532.5,4532.1,0.9926]
[1759682763402,0.0028245,4532.5,4532.4,0.80082]
[1759682763604,0.0028245,4532.5,4532.4,1.02182]
[1759682763806,0.79551776,4532.5,4532.4,1.02182]
[1759682767504,0.47131776,4532.5,4532.4,1.02182]
[1759682769305,0.47131776,4532.5,4532.4,6.02182]
[1759682769705,0.4467,4533.0,4532.9,0.70447]
[1759682769904,0.4467,4533.0,4532.9,4.22957]
[1759682770710,0.44918797,4533.0,4532.9,4.22957]
[1759682772212,0.66528797,4533.0,4532.9,4.22957]
[1759682772411,0.87038797,4533.0,4532.9,4.13327]
[1759682772606,1.26734797,4533.0,4532.9,3.2078]
[1759682772813,6.26734797,4533.0,4532.9,3.4288]
[1759682773607,5.87038797,4533.0,4532.9,3.4288]
[1759682774417,5.87038797,4533.0,4532.9,3.82577]
[1759682775017,0.87038797,4533.0,4532.9,3.82577]
[1759682776118,5.87038797,4533.0,4532.9,3.2078]
[1759682776311,5.87038797,4533.0,4532.4,3.2078]
[1759682776312,1.27461,4532.5,4532.4,3.2078]
[1759682776519,1.27461,4532.5,4531.4,0.99275]
[1759682776520,0.5534,4532.0,4531.9,3.60486]
[1759682776819,0.8776,4532.0,4531.9,3.82586]
[1759682777217,0.8776,4532.0,4531.9,3.2078]
[1759682777420,0.8776,4532.0,4531.9,3.4288]
[1759682778215,0.8776,4532.0,4531.9,3.5823]
[1759682780829,0.8776,4532.0,4531.9,3.3613]
[1759682781027,0.8776,4532.0,4531.9,3.5823]
[1759682781825,1.34387802,4532.0,4531.9,3.5823]
[1759682782924,1.34387802,4532.0,4531.9,3.75836]
[1759682783229,1.34387802,4532.0,4531.9,3.97936]
[1759682785026,1.34387802,4532.0,4531.9,3.2078]
[1759682785027,1.74092802,4532.0,4531.9,3.2078]
[1759682785223,1.74092802,4532.0,4531.9,3.4288]
[1759682786228,0.99273,4531.6,4530.3,0.00179522]
[1759682786526,0.99273,4531.6,4527.9,0.34838554]
[1759682786527,0.2201,4528.0,4527.9,0.34838554]
[1759682786720,0.4397,4528.0,4527.9,0.79408554]
[1759682786920,1.54649255,4528.0,4527.9,0.24308554]
[1759682787327,1.54848457,4528.0,4527.9,0.24569135]
[1759682787918,1.54848457,4528.0,4527.9,0.02469135]
[1759682788528,0.8018,4527.0,4526.9,3.2078]
[1759682788729,0.8018,4527.0,4524.0,0.1294]
[1759682788730,0.99377,4526.9,4523.5,3.2078]
[1759682789028,2.949,4519.2,4516.7,3.95841054]
[1759682789323,2.949,4519.2,4515.2,0.99633]
[1759682789324,9.95611,4518.5,4517.0,0.1294]
[1759682789523,9.95611,4518.5,4510.6,9.97331]
[1759682789524,0.39847,4515.9,4510.6,9.97331]
[1759682789728,0.39847,4515.9,4510.2,9.9743]
[1759682789729,0.79837704,4515.8,4514.0,0.1294]
[1759682789926,0.57737704,4515.7,4515.6,0.1294]
[1759682790118,0.57737704,4515.7,4514.4,0.1294]
[1759682790320,0.39857,4514.8,4512.9,0.02440692]
[1759682790521,3.2078,4514.3,4513.8,7.10364535]
[1759682790728,2.84719201,4514.7,4514.4,0.1294]
[1759682790927,0.00220953,4514.8,4514.4,0.1294]
[1759682791133,3.2078,4515.9,4515.6,0.1294]
[1759682791330,3.2078,4516.8,4516.2,0.1294]
[1759682791828,3.2078,4516.8,4513.4,0.39869]
[1759682791829,3.60596,4519.4,4519.3,0.3263]
[1759682792021,0.39821,4518.9,4517.8,0.1294]
[1759682792225,0.64702201,4518.8,4518.5,0.2708]
[1759682792423,3.21008993,4518.9,4517.8,0.00158604]
[1759682792424,0.64702201,4518.7,4517.8,0.00158604]
[1759682792623,0.64702201,4518.7,4516.4,0.2708]
[1759682792624,3.2078,4517.9,4515.7,0.2708]
[1759682792832,3.85482201,4517.8,4515.7,0.2708]
[1759682793133,3.2078,4516.4,4514.3,0.2708]
[1759682793333,0.636,4517.4,4517.1,1.09770578]
[1759682793631,34.468,4519.7,4516.2,3.2078]
[1759682793632,3.2078,4517.2,4516.2,3.2078]
[1759682793832,3.2078,4517.9,4516.4,3.4786]
[1759682794129,3.2078,4518.3,4517.5,3.2078]
[1759682794335,0.636,4517.7,4516.9,0.222]
[1759682794528,3.2078,4517.2,4516.9,0.00222268]
[1759682794735,0.9045,4517.1,4516.9,0.00222268]
[1759682794934,0.39837,4517.0,4516.9,0.00222268]
[1759682795133,1.03437,4517.0,4516.9,2.68e-06]
[1759682795330,3.54796527,4517.0,4516.9,1.09770846]
[1759682795538,0.636,4517.0,4516.9,1.25170846]
[1759682795731,3.2078,4517.7,4517.1,1.09770578]
[1759682796034,1.26351,4521.3,4517.5,3.2078]
[1759682796035,3.4763,4519.9,4517.5,3.2078]
[1759682796226,0.39813,4519.8,4518.9,3.2078]
[1759682796428,3.4763,4519.9,4519.0,0.222]
[1759682796628,3.4763,4519.9,4518.9,3.2078]
[1759682796834,3.4763,4519.9,4519.8,1.09770578]
[1759682797134,0.2685,4520.6,4519.8,4.30550578]
[1759682797329,0.2685,4520.6,4520.5,1.09770578]
[1759682797535,0.2685,4520.6,4520.5,1.31970578]
[1759682797728,0.9045,4521.3,4520.5,1.31970578]
[1759682797940,0.9045,4521.3,4521.2,1.09770578]
[1759682798134,0.90682797,4521.3,4521.2,1.09993318]
[1759682798536,8.16381247,4521.3,4519.7,3.2078]
[1759682798736,0.39809,4520.2,4520.0,1.09770578]
[1759682799044,1.30261,4520.0,4519.9,1.09770578]
[1759682799539,1.30261,4520.0,4519.9,1.09972551]
[1759682799940,1.30261,4520.0,4519.9,0.00201973]
[1759682800144,1.30261,4520.0,4519.9,1.09972551]
[1759682800840,0.9045,4520.0,4519.9,1.09972551]
[1759682802540,0.636,4518.8,4518.2,3.2078]
[1759682802741,0.636,4519.5,4518.7,3.2078]
[1759682803040,0.636,4519.5,4519.3,3.2078]
[1759682803242,0.636,4519.5,4519.4,0.77948551]
[1759682803442,0.636,4519.5,4519.4,0.78113365]
[1759682803637,0.636,4519.5,4519.4,0.55913365]
[1759682804246,0.636,4519.5,4519.4,0.00164814]
[1759682804746,0.636,4519.5,4519.4,0.55913365]
[1759682804942,0.66661,4520.0,4519.4,0.55913365]
[1759682804943,3.2078,4521.0,4519.4,5.55913365]
[1759682805143,0.9045,4520.6,4520.5,0.55748551]
[1759682806139,0.9045,4520.6,4519.4,0.00164814]
[1759682806140,0.636,4519.5,4519.4,0.00164814]
[1759682806340,3.8438,4519.5,4519.4,0.00164814]
[1759682806644,8.8438,4519.5,4519.4,0.00164814]
[1759682806841,9.4830126,4519.5,4519.4,0.00164814]
[1759682808344,4.8811626,4519.5,4519.4,0.00164814]
[1759682808548,4.4830126,4519.5,4519.4,0.55913365]
[1759682809445,4.4830126,4519.5,4519.4,0.00164814]
[1759682809849,4.4830126,4519.5,4519.4,0.55913365]
[1759682811846,1.2752126,4519.5,4519.4,0.55913365]
[1759682812045,0.6392126,4519.5,4519.4,5.55913365]
[1759682814149,1.1607,4520.6,4519.4,6.55453365]
[1759682814349,2.70042571,4520.6,4520.5,0.55748551]
[1759682814547,2.70042571,4520.6,4520.5,0.77948551]
[1759682814747,1.1607,4520.6,4520.5,0.77948551]
[1759682815252,1.1607,4520.6,4520.5,0.55748551]
[1759682815553,1.1607,4520.6,4520.5,0.77948551]
[1759682816351,1.1607,4520.6,4520.5,0.222]
[1759682816550,1.55875,4520.6,4520.5,0.222]
[1759682817346,0.8922,4520.3,4520.0,3.6059]
[1759682817551,5.45896624,4520.6,4520.1,0.222]
[1759682817751,0.8922,4520.2,4520.1,0.62009]
[1759682818153,0.8922,4520.2,4520.0,3.6059]
[1759682818453,0.8922,4520.2,4520.1,0.222]
[1759682819245,6.05752375,4521.1,4520.2,0.99523]
[1759682819451,0.39805,4520.7,4520.5,3.2078]
[1759682819644,0.39805,4520.7,4519.5,0.99537]
[1759682819645,0.8922,4520.6,4519.5,0.39814]
[1759682819845,0.99518,4520.4,4519.4,3.20944814]
[1759682820050,0.8922,4519.8,4519.5,0.222]
[1759682820250,1.1569,4519.5,4519.4,0.00164814]
[1759682820449,4.3647,4519.5,4519.4,0.00164814]
[1759682820646,9.3647,4519.5,4519.4,0.00164814]
[1759682820848,2.71641375,4519.5,4519.4,0.00164814]
[1759682821353,1.1569,4519.5,4519.4,0.00164814]
[1759682821553,4.3647,4519.5,4519.4,0.00164814]
[1759682823253,0.66295,4518.5,4518.2,3.2078]
[1759682823458,0.8922,4518.4,4518.2,3.2078]
[1759682824147,1.1569,4519.0,4518.9,0.3982]
[1759682824343,1.1569,4519.0,4518.9,0.6202]
[1759682824547,1.1569,4519.0,4518.9,5.6202]
[1759682824758,0.8922,4519.4,4519.3,0.39816]
[1759682825852,0.2647,4519.0,4518.8,3.60601]
[1759682826051,0.8922,4518.9,4518.8,0.39821]
[1759682826255,1.34927101,4518.9,4518.6,0.39823]
[1759682826455,0.2647,4518.5,4518.2,3.21024276]
[1759682826655,1.34923682,4518.4,4518.3,0.62025]
[1759682827055,1.34923682,4518.4,4518.3,0.222]
[1759682828167,0.45703682,4518.4,4518.3,0.222]
[1759682828360,0.8922,4518.3,4518.2,3.60850276]
[1759682828559,1.34923682,4518.3,4518.2,3.83050276]
[1759682828958,1.34923682,4518.3,4518.2,3.60850276]
[1759682829253,1.34923682,4518.3,4518.2,0.62270276]
[1759682830360,1.34923682,4518.3,4518.2,0.40070276]
[1759682830559,1.34923682,4518.3,4518.2,0.00244276]
[1759682832762,4.55703682,4518.3,4518.2,0.00244276]
[1759682833061,1.1569,4518.0,4517.9,0.02213442]
[1759682833359,0.2647,4517.5,4517.3,0.222]
[1759682833662,0.8922,4516.9,4516.8,0.39838]
[1759682833860,0.8922,4516.9,4516.8,0.62038]
[1759682834061,0.89497586,4516.9,4516.8,0.62260359]
[1759682835558,0.89497586,4516.9,4516.8,0.40060359]
[1759682835759,0.89497586,4516.9,4516.8,0.62260359]
[1759682836160,0.8922,4517.3,4517.2,0.39835]
[1759682836362,0.8922,4517.3,4517.2,3.82815]
[1759682836958,1.1569,4518.0,4517.2,8.4298]
[1759682837157,1.1569,4518.0,4517.6,0.39831]
[1759682837158,0.8922,4517.9,4517.6,0.39831]
[1759682837461,0.8922,4517.9,4517.7,0.62031]
[1759682837659,1.55501244,4518.0,4517.7,0.222]
[1759682837862,0.8895,4517.8,4517.7,0.62031]
[1759682838064,1.28788,4516.9,4516.8,0.00222359]
[1759682838669,1.74361587,4516.9,4516.8,0.00222359]
[1759682839360,1.28788,4516.9,4516.8,0.00222359]
[1759682839963,1.74336395,4516.9,4516.8,0.00222359]
[1759682840166,1.34498395,4516.9,4516.8,0.00222359]
[1759682840374,0.8895,4517.4,4516.8,0.00222359]
[1759682840672,0.8895,4517.4,4517.3,0.39834]
[1759682841068,0.8895,4517.4,4517.3,0.222]
[1759682842773,0.3565,4517.5,4516.8,0.00222359]
[1759682842774,0.8895,4516.9,4516.8,0.40060359]
[1759682843066,0.8895,4516.9,4516.8,0.00222359]
[1759682843271,0.8895,4516.9,4516.8,0.22522359]
[1759682843476,0.8895,4516.9,4516.8,0.00222359]
[1759682843668,0.8895,4516.9,4516.8,0.22522359]
[1759682844173,0.8895,4516.9,4516.8,0.00222359]
[1759682845477,0.8895,4516.9,4516.8,2.359e-05]
[1759682847475,0.8895,4516.9,4516.8,5.00002359]
[1759682847776,0.3565,4517.0,4516.9,0.39838]
[1759682847976,0.3565,4517.0,4516.9,0.62138]
[1759682848278,1.246,4517.0,4516.9,0.62138]
[1759682848877,1.64437,4517.0,4516.9,0.223]
[1759682849378,1.246,4517.0,4516.9,0.223]
[1759682852375,0.75488,4517.0,4516.8,0.39841359]
[1759682852680,0.75488,4517.0,4516.9,0.223]
[1759682852874,1.64618,4517.0,4516.9,0.223]
[1759682853380,1.64618,4517.0,4516.8,0.39840359]
[1759682853581,1.64618,4517.0,4516.9,0.223]
[1759682853783,1.2478,4517.0,4516.9,0.223]
[1759682854877,1.2478,4517.0,4516.8,0.39841359]
[1759682855275,1.2478,4517.0,4516.9,0.223]
[1759682858476,1.2478,4517.0,4516.8,0.39841359]
[1759682858477,0.8913,4516.9,4516.8,0.39841359]
[1759682858882,1.28968,4516.9,4516.8,0.39841359]
[1759682859077,0.8913,4516.9,4516.8,0.39841359]
[1759682859284,1.28968,4516.9,4516.8,0.39841359]
[1759682860175,0.39838,4516.9,4516.8,2.359e-05]
[1759682860774,8.60618,4516.9,4516.8,2.359e-05]
[1759682860981,9.05749849,4516.9,4516.8,2.359e-05]
[1759682861376,11.89895717,4516.9,4516.8,2.359e-05]
[1759682861580,11.89895717,4516.9,4515.0,1.57610654]
[1759682861581,0.8913,4515.3,4515.2,1.18801714]
[1759682861783,0.3742,4515.5,4515.0,1.18801714]
[1759682861784,1.28984,4515.1,4515.0,1.18801714]